[Event "Late-Titled-Tuesday-Blitz-May-28-2024"]
[Site "Chess.com"]
[Date "2024.05.28"]
[Round "5"]
[White "nindjaxx8"]
[Black "MatthewG-p4p"]
[Result "0-1"]
[WhiteElo "2639"]
[BlackElo "2850"]
[TimeControl "180+1"]
[EndTime "14:55:26 PDT"]
[Termination "MatthewG-p4p won by resignation"]

1. d4 {[%clk 0:03:00.9]} 1... Nf6 {[%clk 0:02:57.2]} 2. c4 {[%clk 0:03:00.3]}
2... c5 {[%clk 0:02:56.7]} 3. d5 {[%clk 0:02:56.8]} 3... e6 {[%clk 0:02:56.1]}
4. Nc3 {[%clk 0:02:55.1]} 4... exd5 {[%clk 0:02:55.5]} 5. cxd5 {[%clk 0:02:51]}
5... d6 {[%clk 0:02:56]} 6. e4 {[%clk 0:02:47.9]} 6... g6 {[%clk 0:02:56.9]} 7.
Nf3 {[%clk 0:02:46.3]} 7... Bg7 {[%clk 0:02:57.4]} 8. Bf4 {[%clk 0:02:36.7]}
8... O-O {[%clk 0:02:54.8]} 9. Bd3 {[%clk 0:02:31.1]} 9... a6 {[%clk 0:02:47.8]}
10. a4 {[%clk 0:02:29.8]} 10... Bg4 {[%clk 0:02:47.7]} 11. O-O {[%clk
0:02:26.7]} 11... Re8 {[%clk 0:02:47.9]} 12. Re1 {[%clk 0:02:23.5]} 12... Nh5
{[%clk 0:02:45.1]} 13. Bg3 {[%clk 0:02:21.6]} 13... Qc7 {[%clk 0:02:41.1]} 14.
Qc2 {[%clk 0:01:40.5]} 14... Bxf3 {[%clk 0:02:39.7]} 15. gxf3 {[%clk 0:01:40.4]}
15... Nd7 {[%clk 0:02:40.1]} 16. Kg2 {[%clk 0:01:40.1]} 16... Rab8 {[%clk
0:02:38.7]} 17. Rac1 {[%clk 0:01:38.7]} 17... c4 {[%clk 0:02:38.3]} 18. Bf1
{[%clk 0:01:38]} 18... b5 {[%clk 0:02:38.3]} 19. axb5 {[%clk 0:01:37.6]} 19...
axb5 {[%clk 0:02:39.2]} 20. Ne2 {[%clk 0:01:10.7]} 20... Nc5 {[%clk 0:02:39.2]}
21. Red1 {[%clk 0:01:10.8]} 21... Bh6 {[%clk 0:02:28.9]} 22. Rb1 {[%clk
0:01:08.7]} 22... Qe7 {[%clk 0:02:17.8]} 23. Nd4 {[%clk 0:01:04.4]} 23... Qf6
{[%clk 0:02:18.1]} 24. b3 {[%clk 0:00:58.6]} 24... Nf4+ {[%clk 0:01:59.4]} 25.
Bxf4 {[%clk 0:00:42.6]} 25... Bxf4 {[%clk 0:02:00.3]} 26. bxc4 {[%clk
0:00:39.9]} 26... bxc4 {[%clk 0:01:59.4]} 27. Rxb8 {[%clk 0:00:33.5]} 27... Rxb8
{[%clk 0:01:59.8]} 28. Qxc4 {[%clk 0:00:33]} 28... Rb2 {[%clk 0:01:56.5]} 29.
Ne2 {[%clk 0:00:24.2]} 29... Qh4 {[%clk 0:01:54.7]} 30. Ng3 {[%clk 0:00:18.1]}
30... h5 {[%clk 0:01:53]} 31. Qc3 {[%clk 0:00:17.5]} 31... Rxf2+ {[%clk
0:01:28.6]} 32. Kxf2 {[%clk 0:00:16.3]} 32... Qxh2+ {[%clk 0:01:29.5]} 33. Bg2
{[%clk 0:00:15.7]} 33... Qxg3+ {[%clk 0:01:29.9]} 34. Kf1 {[%clk 0:00:15.7]}
34... Nxe4 {[%clk 0:01:29.9]} 35. Qd4 {[%clk 0:00:12.9]} 35... Ng5 {[%clk
0:01:18.5]} 36. Ra1 {[%clk 0:00:08.4]} 36... Be5 {[%clk 0:01:17.8]} 37. Ra8+
{[%clk 0:00:08.5]} 37... Kh7 {[%clk 0:01:18.2]} 38. Qd3 {[%clk 0:00:06.4]} 38...
Qf4 {[%clk 0:01:15.6]} 39. Qb3 {[%clk 0:00:03.4]} 39... Qc1+ {[%clk 0:01:14.4]}
40. Ke2 {[%clk 0:00:03.8]} 40... Qg1 {[%clk 0:01:13.1]} 41. Bf1 {[%clk
0:00:02.7]} 41... Bd4 {[%clk 0:01:12.9]} 42. Ke1 {[%clk 0:00:01]} 42... Qf2+
{[%clk 0:01:12.7]} 43. Kd1 {[%clk 0:00:01.9]} 43... Qxf1+ {[%clk 0:01:13.6]} 44.
Kd2 {[%clk 0:00:02.4]} 44... Nxf3+ {[%clk 0:01:13.3]} 45. Kc2 {[%clk 0:00:02.6]}
45... Qe2+ {[%clk 0:01:12.7]} 46. Kc1 {[%clk 0:00:02.3]} 46... Be3+ {[%clk
0:01:12.5]} 0-1

[Event "Late-Titled-Tuesday-Blitz-May-28-2024"]
[Site "Chess.com"]
[Date "2024.05.28"]
[Round "5"]
[White "Mikhail_Bryakin"]
[Black "AldokhinIvan"]
[Result "1-0"]
[WhiteElo "2849"]
[BlackElo "2632"]
[TimeControl "180+1"]
[EndTime "14:55:27 PDT"]
[Termination "Mikhail_Bryakin won on time"]

1. e4 {[%clk 0:03:00.9]} 1... c5 {[%clk 0:02:59.6]} 2. d4 {[%clk 0:02:50.3]}
2... cxd4 {[%clk 0:02:58.7]} 3. Qxd4 {[%clk 0:02:51.2]} 3... Nc6 {[%clk
0:02:57.2]} 4. Qd3 {[%clk 0:02:51.2]} 4... Nf6 {[%clk 0:02:56.8]} 5. Nc3 {[%clk
0:02:48.5]} 5... d6 {[%clk 0:02:56.3]} 6. Nf3 {[%clk 0:02:48.7]} 6... g6 {[%clk
0:02:48.1]} 7. Be2 {[%clk 0:02:47.7]} 7... Bg7 {[%clk 0:02:47.6]} 8. O-O {[%clk
0:02:48.2]} 8... O-O {[%clk 0:02:47.8]} 9. Nd5 {[%clk 0:02:48.7]} 9... Nd7
{[%clk 0:02:42.4]} 10. c3 {[%clk 0:02:47.1]} 10... Nc5 {[%clk 0:02:27.2]} 11.
Qc2 {[%clk 0:02:46]} 11... e6 {[%clk 0:02:23.8]} 12. Ne3 {[%clk 0:02:37.1]}
12... Qc7 {[%clk 0:02:22.6]} 13. Rd1 {[%clk 0:02:33.4]} 13... a6 {[%clk
0:02:13.9]} 14. Ng4 {[%clk 0:02:31.9]} 14... h5 {[%clk 0:01:55.9]} 15. Ne3
{[%clk 0:02:31.6]} 15... b5 {[%clk 0:01:55.5]} 16. Bd2 {[%clk 0:02:09.8]} 16...
Bb7 {[%clk 0:01:53.9]} 17. Nf1 {[%clk 0:02:01.2]} 17... Rac8 {[%clk 0:01:14.7]}
18. Ng3 {[%clk 0:01:58.7]} 18... Nd7 {[%clk 0:00:41.6]} 19. Bf4 {[%clk
0:01:54.1]} 19... Nde5 {[%clk 0:00:40.7]} 20. Nxe5 {[%clk 0:01:54]} 20... dxe5
{[%clk 0:00:24.6]} 21. Bg5 {[%clk 0:01:51.4]} 21... b4 {[%clk 0:00:23.3]} 22.
Qd2 {[%clk 0:01:44.2]} 22... bxc3 {[%clk 0:00:15]} 23. bxc3 {[%clk 0:01:43.1]}
23... f6 {[%clk 0:00:14.4]} 24. Bh6 {[%clk 0:01:42.1]} 24... Rfd8 {[%clk
0:00:12.2]} 25. Qe3 {[%clk 0:01:40]} 25... Na5 {[%clk 0:00:12.6]} 26. Bxg7
{[%clk 0:01:38.5]} 26... Kxg7 {[%clk 0:00:12.1]} 27. Rxd8 {[%clk 0:01:36.5]}
27... Rxd8 {[%clk 0:00:11.7]} 28. Bxh5 {[%clk 0:01:34.7]} 28... gxh5 {[%clk
0:00:02.7]} 29. Nxh5+ {[%clk 0:01:35.6]} 29... Kh7 {[%clk 0:00:03.2]} 30. Nxf6+
{[%clk 0:01:35.2]} 30... Kg6 {[%clk 0:00:03.9]} 31. Ng4 {[%clk 0:01:31.7]} 31...
Rh8 {[%clk 0:00:04.6]} 32. Qg3 {[%clk 0:01:29.7]} 32... Kf7 {[%clk 0:00:04.8]}
33. Nxe5+ {[%clk 0:01:29.9]} 33... Ke8 {[%clk 0:00:05.3]} 34. Qg6+ {[%clk
0:01:28]} 34... Kd8 {[%clk 0:00:04.7]} 35. Qf6+ {[%clk 0:01:28.4]} 35... Qe7
{[%clk 0:00:05.2]} 36. Qxe7+ {[%clk 0:01:27]} 36... Kxe7 {[%clk 0:00:05]} 37.
Ng6+ {[%clk 0:01:27.9]} 37... Kf6 {[%clk 0:00:05.8]} 38. Nxh8 {[%clk 0:01:28.7]}
38... Bxe4 {[%clk 0:00:06.5]} 39. Re1 {[%clk 0:01:26.3]} 39... Bf5 {[%clk
0:00:06.1]} 40. f3 {[%clk 0:01:25.2]} 40... Kg7 {[%clk 0:00:04.9]} 41. g4 {[%clk
0:01:25.7]} 41... Bc2 {[%clk 0:00:05.2]} 42. Rxe6 {[%clk 0:01:24.8]} 42... Kxh8
{[%clk 0:00:05.6]} 43. Rxa6 {[%clk 0:01:25]} 43... Nc4 {[%clk 0:00:06.2]} 44.
Kf2 {[%clk 0:01:25.2]} 44... Kg7 {[%clk 0:00:06]} 45. h4 {[%clk 0:01:25.3]}
45... Nb2 {[%clk 0:00:05.7]} 46. Ke3 {[%clk 0:01:24.6]} 46... Nd1+ {[%clk
0:00:05.3]} 47. Kf4 {[%clk 0:01:24.7]} 47... Nxc3 {[%clk 0:00:04.7]} 48. Rc6
{[%clk 0:01:25.2]} 48... Nd5+ {[%clk 0:00:02.7]} 49. Ke5 {[%clk 0:01:25.7]}
49... Ne3 {[%clk 0:00:03]} 50. Kd4 {[%clk 0:01:25.6]} 1-0

[Event "Late-Titled-Tuesday-Blitz-May-28-2024"]
[Site "Chess.com"]
[Date "2024.05.28"]
[Round "5"]
[White "swayamsm"]
[Black "BAS8892"]
[Result "1-0"]
[WhiteElo "2565"]
[BlackElo "2725"]
[TimeControl "180+1"]
[EndTime "14:55:27 PDT"]
[Termination "swayamsm won by checkmate"]

1. d4 {[%clk 0:02:56.1]} 1... Nf6 {[%clk 0:02:59.8]} 2. Nf3 {[%clk 0:02:56.6]}
2... g6 {[%clk 0:03:00.1]} 3. Nc3 {[%clk 0:02:54.9]} 3... d5 {[%clk 0:02:58.2]}
4. Bf4 {[%clk 0:02:55.4]} 4... Bg7 {[%clk 0:02:56.8]} 5. e3 {[%clk 0:02:56]}
5... O-O {[%clk 0:02:56.8]} 6. Be2 {[%clk 0:02:51.6]} 6... c5 {[%clk 0:02:56.7]}
7. dxc5 {[%clk 0:02:51.3]} 7... Na6 {[%clk 0:02:54.1]} 8. Bxa6 {[%clk
0:02:41.6]} 8... bxa6 {[%clk 0:02:54.2]} 9. O-O {[%clk 0:02:35.6]} 9... Qa5
{[%clk 0:02:52.6]} 10. c6 {[%clk 0:02:21.2]} 10... Qb6 {[%clk 0:02:45.7]} 11.
Nd4 {[%clk 0:02:09.8]} 11... Qxb2 {[%clk 0:02:42.5]} 12. Qd2 {[%clk 0:02:06.8]}
12... Qb4 {[%clk 0:02:31.6]} 13. Rab1 {[%clk 0:01:47.1]} 13... Qc4 {[%clk
0:02:31.7]} 14. Be5 {[%clk 0:01:35.3]} 14... Ne4 {[%clk 0:02:30.4]} 15. Nxe4
{[%clk 0:01:35.3]} 15... Bxe5 {[%clk 0:02:30.3]} 16. Rb4 {[%clk 0:01:33.1]}
16... Qxa2 {[%clk 0:02:24.9]} 17. Nc5 {[%clk 0:00:48.7]} 17... Qa5 {[%clk
0:02:18.8]} 18. Ndb3 {[%clk 0:00:48.4]} 18... Qc7 {[%clk 0:02:16.9]} 19. Qxd5
{[%clk 0:00:48.5]} 19... Bxh2+ {[%clk 0:02:13.4]} 20. Kh1 {[%clk 0:00:46.9]}
20... Bd6 {[%clk 0:02:13.9]} 21. Rh4 {[%clk 0:00:31.7]} 21... e6 {[%clk
0:02:09]} 22. Qf3 {[%clk 0:00:24.7]} 22... Be7 {[%clk 0:02:07.2]} 23. Rh2 {[%clk
0:00:14.2]} 23... Rb8 {[%clk 0:02:05.2]} 24. Ne4 {[%clk 0:00:12.4]} 24... f5
{[%clk 0:02:02.2]} 25. Nec5 {[%clk 0:00:12.6]} 25... Rb5 {[%clk 0:02:01]} 26.
Nd3 {[%clk 0:00:11.7]} 26... e5 {[%clk 0:01:53.4]} 27. Qh3 {[%clk 0:00:11.5]}
27... h5 {[%clk 0:01:51.2]} 28. f4 {[%clk 0:00:12]} 28... exf4 {[%clk
0:01:41.9]} 29. Nxf4 {[%clk 0:00:12.9]} 29... Rf6 {[%clk 0:01:38.6]} 30. Nd4
{[%clk 0:00:12.4]} 30... Rc5 {[%clk 0:01:28.5]} 31. Nxh5 {[%clk 0:00:12.4]}
31... gxh5 {[%clk 0:01:26.6]} 32. Qxh5 {[%clk 0:00:13.3]} 32... Rcxc6 {[%clk
0:00:44.2]} 33. Qh8+ {[%clk 0:00:11.3]} 33... Kf7 {[%clk 0:00:43.9]} 34. Rh7+
{[%clk 0:00:12]} 34... Kg6 {[%clk 0:00:43.3]} 35. Qg7# {[%clk 0:00:12.5]} 1-0

[Event "Late-Titled-Tuesday-Blitz-May-28-2024"]
[Site "Chess.com"]
[Date "2024.05.28"]
[Round "5"]
[White "nihalsarin"]
[Black "Msb2"]
[Result "1-0"]
[WhiteElo "3258"]
[BlackElo "3031"]
[TimeControl "180+1"]
[EndTime "14:55:31 PDT"]
[Termination "nihalsarin won by resignation"]

1. d4 {[%clk 0:02:49.2]} 1... d5 {[%clk 0:02:59.5]} 2. Bg5 {[%clk 0:02:45.3]}
2... h6 {[%clk 0:02:59.4]} 3. Bf4 {[%clk 0:02:44.1]} 3... c5 {[%clk 0:02:58.6]}
4. e3 {[%clk 0:02:43.6]} 4... Nc6 {[%clk 0:02:59.1]} 5. Nc3 {[%clk 0:02:37.6]}
5... a6 {[%clk 0:02:56.1]} 6. Nf3 {[%clk 0:02:36.6]} 6... e6 {[%clk 0:02:56.4]}
7. dxc5 {[%clk 0:02:33.8]} 7... Bxc5 {[%clk 0:02:55.5]} 8. Bd3 {[%clk
0:02:34.5]} 8... Nf6 {[%clk 0:02:53]} 9. O-O {[%clk 0:02:35.1]} 9... Bd6 {[%clk
0:02:45.7]} 10. Re1 {[%clk 0:02:31.5]} 10... e5 {[%clk 0:02:41.2]} 11. Bg3
{[%clk 0:02:31.5]} 11... O-O {[%clk 0:02:16.5]} 12. e4 {[%clk 0:02:21.4]} 12...
d4 {[%clk 0:02:15.6]} 13. Nd5 {[%clk 0:02:22]} 13... Nd7 {[%clk 0:01:56.5]} 14.
Bh4 {[%clk 0:02:09.5]} 14... Qe8 {[%clk 0:01:53.7]} 15. c3 {[%clk 0:02:07.2]}
15... dxc3 {[%clk 0:01:52.1]} 16. bxc3 {[%clk 0:02:07.2]} 16... Nc5 {[%clk
0:01:50]} 17. Bc4 {[%clk 0:02:04.4]} 17... Bb8 {[%clk 0:01:16.8]} 18. Qd2 {[%clk
0:01:40.4]} 18... Be6 {[%clk 0:01:13.8]} 19. Nf6+ {[%clk 0:01:23]} 19... gxf6
{[%clk 0:01:13.3]} 20. Qxh6 {[%clk 0:01:23.7]} 20... Nd7 {[%clk 0:00:49.3]} 21.
Rad1 {[%clk 0:01:23.5]} 21... Nd4 {[%clk 0:00:30.1]} 22. cxd4 {[%clk 0:00:27.6]}
22... Bxc4 {[%clk 0:00:26.1]} 23. dxe5 {[%clk 0:00:28.2]} 23... Bxe5 {[%clk
0:00:09.2]} 24. Rxd7 {[%clk 0:00:28.4]} 24... Qe6 {[%clk 0:00:01.5]} 25. Nxe5
{[%clk 0:00:26.9]} 25... fxe5 {[%clk 0:00:01.4]} 26. Bf6 {[%clk 0:00:27]} 26...
Qxf6 {[%clk 0:00:02.3]} 27. Qxf6 {[%clk 0:00:27.5]} 27... Be6 {[%clk 0:00:02.2]}
28. Rd3 {[%clk 0:00:27.3]} 1-0

[Event "Late-Titled-Tuesday-Blitz-May-28-2024"]
[Site "Chess.com"]
[Date "2024.05.28"]
[Round "5"]
[White "NajdorfPlayerc5"]
[Black "Connectedcloud"]
[Result "1-0"]
[WhiteElo "2440"]
[BlackElo "2224"]
[TimeControl "180+1"]
[EndTime "14:55:40 PDT"]
[Termination "NajdorfPlayerc5 won by resignation"]

1. d4 {[%clk 0:02:57.2]} 1... Nf6 {[%clk 0:02:58.4]} 2. Bg5 {[%clk 0:02:56.1]}
2... Ne4 {[%clk 0:02:57.6]} 3. h4 {[%clk 0:02:53.7]} 3... c5 {[%clk 0:02:57.1]}
4. d5 {[%clk 0:02:50.8]} 4... Qb6 {[%clk 0:02:54.4]} 5. Nd2 {[%clk 0:02:48.5]}
5... Nxd2 {[%clk 0:02:46.5]} 6. Bxd2 {[%clk 0:02:36.4]} 6... d6 {[%clk 0:02:38]}
7. Nf3 {[%clk 0:02:23]} 7... Nd7 {[%clk 0:02:35.6]} 8. b3 {[%clk 0:02:02.7]}
8... Nf6 {[%clk 0:02:34.1]} 9. c4 {[%clk 0:02:02.7]} 9... e6 {[%clk 0:02:32.6]}
10. dxe6 {[%clk 0:02:01.3]} 10... fxe6 {[%clk 0:02:29.5]} 11. e3 {[%clk
0:01:58.2]} 11... Be7 {[%clk 0:02:29.4]} 12. Bd3 {[%clk 0:01:47.2]} 12... O-O
{[%clk 0:02:29.5]} 13. O-O {[%clk 0:01:43.9]} 13... e5 {[%clk 0:02:13]} 14. Ng5
{[%clk 0:01:41.4]} 14... h6 {[%clk 0:01:57.6]} 15. Ne4 {[%clk 0:01:40.7]} 15...
Nxe4 {[%clk 0:01:57.4]} 16. Bxe4 {[%clk 0:01:40.7]} 16... Bxh4 {[%clk 0:01:49]}
17. Qh5 {[%clk 0:01:39.8]} 17... Bf6 {[%clk 0:01:49.3]} 18. Qg6 {[%clk
0:01:33.3]} 18... Be6 {[%clk 0:01:47.6]} 19. Bc3 {[%clk 0:01:25.3]} 19... Qc7
{[%clk 0:01:34.7]} 20. f4 {[%clk 0:01:13.5]} 20... exf4 {[%clk 0:01:30.9]} 21.
Rxf4 {[%clk 0:00:51.3]} 21... Rf7 {[%clk 0:00:49.2]} 22. Qh7+ {[%clk 0:00:31.2]}
22... Kf8 {[%clk 0:00:47.8]} 23. Bxf6 {[%clk 0:00:26.7]} 23... gxf6 {[%clk
0:00:40.6]} 24. Qh8+ {[%clk 0:00:26.1]} 24... Ke7 {[%clk 0:00:41]} 25. Qxa8
{[%clk 0:00:25.9]} 25... f5 {[%clk 0:00:41.5]} 26. Qxb7 {[%clk 0:00:24.3]} 26...
Qd7 {[%clk 0:00:41.4]} 27. Qxd7+ {[%clk 0:00:22.6]} 27... Kxd7 {[%clk
0:00:40.6]} 28. Bd5 {[%clk 0:00:22.2]} 28... Bxd5 {[%clk 0:00:41]} 29. cxd5
{[%clk 0:00:23.1]} 29... Re7 {[%clk 0:00:38.8]} 30. Rxf5 {[%clk 0:00:22.1]}
30... Rxe3 {[%clk 0:00:39.7]} 31. Rh5 {[%clk 0:00:22.5]} 31... Rd3 {[%clk
0:00:38.8]} 32. Rf1 {[%clk 0:00:21.2]} 32... Kc7 {[%clk 0:00:38.9]} 33. Rf7+
{[%clk 0:00:20.3]} 33... Kb6 {[%clk 0:00:39.8]} 34. Rf6 {[%clk 0:00:20.7]} 34...
Kc7 {[%clk 0:00:39.4]} 35. Rfxh6 {[%clk 0:00:20]} 35... a5 {[%clk 0:00:38.7]}
36. Rh7+ {[%clk 0:00:19.1]} 36... Kb6 {[%clk 0:00:38.6]} 37. Rd7 {[%clk
0:00:19.1]} 37... Kb5 {[%clk 0:00:37.4]} 38. Rxd6 {[%clk 0:00:18]} 38... Rd2
{[%clk 0:00:38.3]} 39. a4+ {[%clk 0:00:15.6]} 39... Kb4 {[%clk 0:00:38.7]} 40.
Rb6+ {[%clk 0:00:15.8]} 40... Ka3 {[%clk 0:00:38.6]} 41. d6 {[%clk 0:00:15.2]}
41... Rd3 {[%clk 0:00:37.4]} 1-0

[Event "Late-Titled-Tuesday-Blitz-May-28-2024"]
[Site "Chess.com"]
[Date "2024.05.28"]
[Round "5"]
[White "Tibmat"]
[Black "Magicmaster17"]
[Result "0-1"]
[WhiteElo "2683"]
[BlackElo "2881"]
[TimeControl "180+1"]
[EndTime "14:55:41 PDT"]
[Termination "Magicmaster17 won on time"]

1. c4 {[%clk 0:02:59]} 1... e5 {[%clk 0:02:57.5]} 2. g3 {[%clk 0:02:58.8]} 2...
Nf6 {[%clk 0:02:56.3]} 3. Bg2 {[%clk 0:02:59.2]} 3... h6 {[%clk 0:02:57]} 4. Nc3
{[%clk 0:02:58.9]} 4... Bb4 {[%clk 0:02:56.6]} 5. e4 {[%clk 0:02:59.6]} 5... Nc6
{[%clk 0:02:54.5]} 6. Nge2 {[%clk 0:02:59.3]} 6... d6 {[%clk 0:02:55.1]} 7. O-O
{[%clk 0:02:59.6]} 7... Bc5 {[%clk 0:02:55.7]} 8. d3 {[%clk 0:02:59.1]} 8... a6
{[%clk 0:02:55.3]} 9. h3 {[%clk 0:02:57.4]} 9... O-O {[%clk 0:02:49.3]} 10. Be3
{[%clk 0:02:56.9]} 10... Nd4 {[%clk 0:02:49.2]} 11. Kh2 {[%clk 0:02:54]} 11...
Rb8 {[%clk 0:02:46.1]} 12. a3 {[%clk 0:02:48.4]} 12... b5 {[%clk 0:02:45]} 13.
b4 {[%clk 0:02:49]} 13... Ba7 {[%clk 0:02:45.2]} 14. Rb1 {[%clk 0:02:44.8]}
14... c6 {[%clk 0:02:44.3]} 15. f4 {[%clk 0:02:34.9]} 15... Bg4 {[%clk
0:02:05.8]} 16. Qd2 {[%clk 0:02:09.8]} 16... Re8 {[%clk 0:01:42.3]} 17. fxe5
{[%clk 0:01:38.3]} 17... Bxe2 {[%clk 0:01:41.4]} 18. Nxe2 {[%clk 0:01:36.7]}
18... dxe5 {[%clk 0:01:40.8]} 19. c5 {[%clk 0:01:31.1]} 19... Nxe2 {[%clk
0:01:39.9]} 20. Qxe2 {[%clk 0:01:32]} 20... Rb7 {[%clk 0:01:40.4]} 21. Rf5
{[%clk 0:01:04.7]} 21... Rd7 {[%clk 0:01:38.4]} 22. Bf1 {[%clk 0:01:05.4]} 22...
Nh7 {[%clk 0:01:37.6]} 23. Qf2 {[%clk 0:00:54.1]} 23... Nf8 {[%clk 0:01:36.6]}
24. Be2 {[%clk 0:00:50.1]} 24... Bb8 {[%clk 0:01:35.4]} 25. Rf1 {[%clk
0:00:49.7]} 25... Ree7 {[%clk 0:01:35.8]} 26. h4 {[%clk 0:00:43.1]} 26... Ne6
{[%clk 0:01:35.7]} 27. g4 {[%clk 0:00:40.3]} 27... Nf4 {[%clk 0:01:31.3]} 28.
Bxf4 {[%clk 0:00:09.9]} 28... exf4 {[%clk 0:01:32.2]} 29. Kh3 {[%clk 0:00:09.9]}
29... Be5 {[%clk 0:01:25.5]} 30. Rxe5 {[%clk 0:00:07.8]} 30... Rxe5 {[%clk
0:01:25]} 31. Qxf4 {[%clk 0:00:08.7]} 31... Qe7 {[%clk 0:01:23.8]} 32. Rf3
{[%clk 0:00:07]} 32... a5 {[%clk 0:01:23]} 33. Kg2 {[%clk 0:00:06.2]} 33... axb4
{[%clk 0:01:21.8]} 34. axb4 {[%clk 0:00:07.1]} 34... Rd8 {[%clk 0:01:21.8]} 35.
Kh3 {[%clk 0:00:07]} 35... f6 {[%clk 0:01:17.9]} 36. Bf1 {[%clk 0:00:07.5]}
36... Kf7 {[%clk 0:01:17.6]} 37. Qe3 {[%clk 0:00:08]} 37... Qd7 {[%clk
0:01:12.7]} 38. Rf4 {[%clk 0:00:05.8]} 38... Qd4 {[%clk 0:01:12.2]} 39. Qf3
{[%clk 0:00:05.8]} 39... Ra8 {[%clk 0:01:12]} 40. Rf5 {[%clk 0:00:04.5]} 40...
Ra2 {[%clk 0:01:11.3]} 41. g5 {[%clk 0:00:03.2]} 41... hxg5 {[%clk 0:01:10.9]}
42. hxg5 {[%clk 0:00:04.1]} 42... Rxf5 {[%clk 0:01:08.5]} 43. Qxf5 {[%clk
0:00:05]} 43... Rf2 {[%clk 0:01:03.5]} 44. g6+ {[%clk 0:00:04.1]} 44... Ke7
{[%clk 0:01:03.2]} 45. Qc8 {[%clk 0:00:03.5]} 45... Rxf1 {[%clk 0:01:00.4]} 46.
Qc7+ {[%clk 0:00:01]} 46... Qd7+ {[%clk 0:01:00]} 47. Qxd7+ {[%clk 0:00:01.2]}
47... Kxd7 {[%clk 0:01:00.4]} 0-1

[Event "Late-Titled-Tuesday-Blitz-May-28-2024"]
[Site "Chess.com"]
[Date "2024.05.28"]
[Round "5"]
[White "ckgchess"]
[Black "SRob2003"]
[Result "1-0"]
[WhiteElo "2875"]
[BlackElo "2677"]
[TimeControl "180+1"]
[EndTime "14:55:42 PDT"]
[Termination "ckgchess won by resignation"]

1. e4 {[%clk 0:03:00.9]} 1... c6 {[%clk 0:03:00]} 2. d4 {[%clk 0:03:01.1]} 2...
d5 {[%clk 0:03:00.9]} 3. e5 {[%clk 0:03:01.7]} 3... c5 {[%clk 0:03:01.1]} 4.
dxc5 {[%clk 0:03:01.8]} 4... e6 {[%clk 0:03:01.4]} 5. Be3 {[%clk 0:03:02.4]}
5... Nd7 {[%clk 0:02:53.5]} 6. Bb5 {[%clk 0:03:02.4]} 6... Ne7 {[%clk
0:02:52.4]} 7. Bd4 {[%clk 0:03:02.2]} 7... Nc6 {[%clk 0:02:52.1]} 8. Bxc6 {[%clk
0:03:02.5]} 8... bxc6 {[%clk 0:02:53]} 9. b4 {[%clk 0:03:03.2]} 9... a5 {[%clk
0:02:44]} 10. a3 {[%clk 0:03:03.6]} 10... f6 {[%clk 0:02:28.7]} 11. exf6 {[%clk
0:03:00]} 11... e5 {[%clk 0:01:43.7]} 12. Qh5+ {[%clk 0:02:59.8]} 12... g6
{[%clk 0:01:40.5]} 13. Qh4 {[%clk 0:03:00.7]} 13... Ba6 {[%clk 0:01:09.3]} 14.
Bb2 {[%clk 0:02:47.8]} 14... Kf7 {[%clk 0:00:58.8]} 15. Nf3 {[%clk 0:02:43.9]}
15... Qxf6 {[%clk 0:00:59.2]} 16. Qxf6+ {[%clk 0:02:43.6]} 16... Kxf6 {[%clk
0:01:00.1]} 17. Nxe5 {[%clk 0:02:41.2]} 17... Nxe5 {[%clk 0:00:20.6]} 18. f4
{[%clk 0:02:41.4]} 18... Bg7 {[%clk 0:00:21.4]} 19. fxe5+ {[%clk 0:02:16.6]}
19... Ke6 {[%clk 0:00:18.1]} 20. Nd2 {[%clk 0:02:17.5]} 20... Bxe5 {[%clk
0:00:14.1]} 21. Bxe5 {[%clk 0:02:14.8]} 21... Kxe5 {[%clk 0:00:15]} 22. Nf3+
{[%clk 0:02:10.4]} 22... Kf6 {[%clk 0:00:15.5]} 23. Kd2 {[%clk 0:02:11]} 23...
Ke7 {[%clk 0:00:02.8]} 24. Rhe1+ {[%clk 0:02:09.9]} 24... Kd7 {[%clk 0:00:03.4]}
25. Ne5+ {[%clk 0:02:04.3]} 25... Kc7 {[%clk 0:00:03.8]} 26. Nf7 {[%clk
0:02:05.1]} 26... Rhe8 {[%clk 0:00:04.4]} 27. Nd6 {[%clk 0:02:05.1]} 27... Rxe1
{[%clk 0:00:04.3]} 28. Rxe1 {[%clk 0:02:06]} 28... Kd7 {[%clk 0:00:04.6]} 29.
Re3 {[%clk 0:01:55.2]} 29... Rf8 {[%clk 0:00:03.8]} 30. Rf3 {[%clk 0:01:54.9]}
30... Rxf3 {[%clk 0:00:03.3]} 31. gxf3 {[%clk 0:01:55.8]} 31... axb4 {[%clk
0:00:03.4]} 32. axb4 {[%clk 0:01:55.9]} 32... Ke6 {[%clk 0:00:02.5]} 33. Ke3
{[%clk 0:01:53.8]} 33... Ke5 {[%clk 0:00:02.9]} 34. c3 {[%clk 0:01:42.5]} 34...
g5 {[%clk 0:00:02.1]} 35. Nf7+ {[%clk 0:01:23.7]} 35... Kf6 {[%clk 0:00:02.3]}
36. Nh6 {[%clk 0:01:14.4]} 36... Ke5 {[%clk 0:00:01.9]} 37. Ng4+ {[%clk
0:01:09.2]} 37... Kf5 {[%clk 0:00:02.5]} 38. Nf2 {[%clk 0:01:04.6]} 38... h5
{[%clk 0:00:02.8]} 39. Nd3 {[%clk 0:01:01.3]} 39... Bc4 {[%clk 0:00:03.1]} 40.
Nc1 {[%clk 0:00:58.9]} 40... Ke5 {[%clk 0:00:03]} 41. Ne2 {[%clk 0:00:59.2]}
41... Bxe2 {[%clk 0:00:01.1]} 42. Kxe2 {[%clk 0:00:59.7]} 42... Kf4 {[%clk
0:00:01.7]} 43. b5 {[%clk 0:00:56.5]} 43... cxb5 {[%clk 0:00:01.2]} 44. c6
{[%clk 0:00:56.7]} 44... d4 {[%clk 0:00:01]} 45. cxd4 {[%clk 0:00:54.2]} 45...
b4 {[%clk 0:00:01.2]} 46. c7 {[%clk 0:00:54.7]} 1-0